bitfinex-derivatives/quotes_SOLF0:USTF0_20241203
["timestamp","ask_amount","ask_price","bid_price","bid_amount"]
[1733196543484,4.3755,227.7,227.66,6.53063152]
[1733196545294,2.1955,227.7,227.66,6.53063152]
[1733196546994,2.1956,227.69,227.65,2.1959]
[1733196547789,2.1955,227.7,227.65,2.1959]
[1733196551590,2.18,227.71,227.66,6.53063152]
[1733196551797,2.18,227.74,227.7,8.72613152]
[1733196551999,2.18,227.74,227.7,6.53063152]
[1733196552398,2.18,227.74,227.7,8.72613152]
[1733196554096,4.3751,227.74,227.7,8.72613152]
[1733196554892,2.18,227.74,227.7,8.72613152]
[1733196555894,2.18,227.74,227.72,2.1953]
[1733196556098,2.18,227.74,227.72,6.53063152]
[1733196556302,2.18,227.78,227.72,6.53063152]
[1733196556497,6.53063152,227.82,227.75,6.53063152]
[1733196556498,2.18,227.79,227.75,6.53063152]
[1733196556699,2.1947,227.78,227.75,6.53063152]
[1733196557994,2.18,227.79,227.75,6.53063152]
[1733196558305,2.18,227.79,227.75,8.72563152]
[1733196560899,2.18,227.79,227.75,2.195]
[1733196564609,2.1946,227.8,227.75,2.195]
[1733196564808,4.3746,227.8,227.75,2.195]
[1733196565805,3.5436,227.83,227.77,2.1948]
[1733196566007,2.18,227.82,227.78,6.53063152]
[1733196566310,2.18,227.84,227.78,6.53063152]
[1733196566509,2.1944,227.82,227.78,6.53063152]
[1733196567809,2.1944,227.82,227.78,8.72533152]
[1733196568011,1.3446,227.9,227.78,6.53063152]
[1733196568205,1.3446,227.9,227.8,6.53063152]
[1733196568407,2.18,227.86,227.82,6.53063152]
[1733196570013,4.374,227.86,227.82,6.53063152]
[1733196570209,2.18,227.86,227.82,6.53063152]
[1733196570808,2.18,227.86,227.82,8.72493152]
[1733196573111,2.18,227.86,227.75,2.6755]
[1733196573112,6.53063152,227.83,227.75,2.6755]
[1733196573419,6.53063152,227.83,227.75,9.20613152]
[1733196574011,6.53063152,227.83,227.77,2.1948]
[1733196574915,2.1944,227.81,227.77,2.1948]
[1733196576616,2.18,227.86,227.77,6.53063152]
[1733196576917,2.18,227.86,227.79,2.1946]
[1733196576918,2.1943,227.83,227.79,2.1946]
[1733196577314,2.1943,227.83,227.78,2.1947]
[1733196577709,6.53063152,227.85,227.78,2.1947]
[1733196577916,2.1944,227.82,227.78,2.1947]
[1733196581312,6.53063152,227.85,227.78,2.1947]
[1733196581313,2.1944,227.81,227.78,2.1947]
[1733196582618,2.1944,227.82,227.78,2.1947]
[1733196585618,6.53063152,227.83,227.78,2.1947]
[1733196586621,2.1944,227.82,227.78,2.1947]
[1733196587221,6.53063152,227.85,227.76,6.53063152]
[1733196588924,2.1942,227.83,227.79,2.1946]
[1733196591927,8.72483152,227.83,227.75,2.6755]
[1733196592125,6.53063152,227.83,227.75,2.6755]
[1733196592731,8.72493152,227.83,227.78,2.1946]
[1733196595329,8.72493152,227.83,227.76,6.53063152]
[1733196596423,8.72493152,227.83,227.78,2.1946]
[1733196597133,8.72493152,227.83,227.79,2.1946]
[1733196598233,2.1944,227.82,227.78,2.1947]
[1733196606338,2.1941,227.85,227.78,6.53063152]
[1733196606643,2.18,227.86,227.78,6.53063152]
[1733196606937,2.1942,227.84,227.8,2.1945]
[1733196608839,8.71063152,227.86,227.75,2.6755]
[1733196609029,8.71063152,227.86,227.78,6.53063152]
[1733196609729,2.1943,227.83,227.8,2.1945]
[1733196610233,8.71063152,227.86,227.8,2.1945]
[1733196611035,2.1942,227.84,227.8,2.1945]
[1733196614536,8.71063152,227.86,227.8,2.1945]
[1733196614737,2.1942,227.83,227.8,2.1945]
[1733196615338,2.1943,227.83,227.8,2.1945]
[1733196616240,2.18,227.86,227.8,2.1945]
[1733196616645,2.1942,227.84,227.8,2.1945]
[1733196616940,2.18,227.86,227.8,2.1945]
[1733196618038,2.1941,227.84,227.8,2.1945]
[1733196625437,2.1943,227.83,227.78,6.53063152]
[1733196626446,2.1943,227.83,227.79,2.1945]
[1733196630947,2.1943,227.83,227.8,2.1945]
[1733196631151,2.1941,227.85,227.8,6.53063152]
[1733196631351,2.18,227.86,227.8,6.53063152]
[1733196631552,2.18,227.86,227.82,2.1942]
[1733196631850,2.1941,227.85,227.82,2.1942]
[1733196632353,2.18,227.86,227.82,2.1942]
[1733196634050,4.374,227.86,227.82,2.1942]
[1733196635955,2.18,227.86,227.82,6.53063152]
[1733196636653,2.18,227.88,227.82,6.53063152]
[1733196637044,2.1939,227.87,227.83,2.1942]
[1733196638551,2.18,227.88,227.82,6.53063152]
[1733196638851,2.194,227.86,227.8,6.53063152]
[1733196640352,2.194,227.86,227.82,2.1943]
[1733196640851,2.194,227.86,227.82,8.72493152]
[1733196641058,2.18,227.9,227.84,6.53063152]
[1733196641259,8.71063152,227.9,227.82,6.53063152]
[1733196641653,6.53063152,227.88,227.82,6.53063152]
[1733196641950,2.1938,227.88,227.84,2.1941]
[1733196642155,8.72443152,227.88,227.84,2.1941]
[1733196642457,2.1939,227.87,227.82,8.72483152]
[1733196642757,2.1939,227.87,227.82,6.53063152]
[1733196644657,2.1941,227.85,227.81,2.1943]
[1733196644955,6.53063152,227.88,227.81,6.53063152]
[1733196646055,2.194,227.86,227.82,2.1943]
[1733196647558,6.53063152,227.88,227.75,2.6755]
[1733196647859,6.53063152,227.86,227.77,6.53063152]
[1733196648055,2.18,227.85,227.77,6.53063152]
[1733196648251,2.1943,227.82,227.78,2.1946]
[1733196649364,2.1943,227.82,227.79,6.53063152]
[1733196649664,4.3741,227.85,227.81,2.1944]
[1733196650064,2.18,227.85,227.82,2.1943]
[1733196652164,2.18,227.85,227.81,6.53063152]
[1733196652361,2.18,227.85,227.75,4.8555]
[1733196652362,2.1942,227.84,227.79,6.53063152]
[1733196652864,2.18,227.85,227.79,8.72513152]
[1733196653167,8.71063152,227.85,227.79,6.53063152]
[1733196653661,8.71063152,227.85,227.78,2.1947]
[1733196654064,2.1942,227.83,227.78,2.1947]
[1733196654271,8.71063152,227.85,227.78,2.1947]
[1733196654969,2.1944,227.82,227.78,2.1947]
[1733196655769,2.1944,227.82,227.79,8.72523152]
[1733196656572,8.71063152,227.85,227.79,8.72523152]
[1733196656573,2.1943,227.83,227.79,8.72523152]
[1733196660168,2.18,227.85,227.79,6.53063152]
[1733196660374,2.18,227.85,227.81,6.53063152]
[1733196660771,2.18,227.85,227.83,2.1942]
[1733196661879,2.18,227.85,227.8,2.1945]
[1733196662072,8.71063152,227.85,227.8,2.1945]
[1733196663071,2.1942,227.84,227.8,2.1945]
[1733196666979,2.1942,227.84,227.78,6.53063152]
[1733196667183,2.1942,227.84,227.81,2.1944]
[1733196668187,2.6609,227.93,227.8,6.53063152]
[1733196668481,6.53063152,227.91,227.82,6.53063152]
[1733196669287,2.18,227.92,227.82,6.53063152]
[1733196669587,6.53063152,227.91,227.82,6.53063152]
[1733196669787,2.1938,227.89,227.85,2.194]
[1733196670285,6.53063152,227.91,227.82,6.53063152]
[1733196670488,2.18,227.9,227.79,1.3604]
[1733196670681,2.18,227.9,227.83,6.53063152]
[1733196670988,4.3737,227.9,227.85,2.194]
[1733196671187,10.90433152,227.9,227.85,2.194]
[1733196671381,10.90433152,227.9,227.83,6.53063152]
[1733196671582,10.90433152,227.9,227.85,2.194]
[1733196671787,2.1937,227.89,227.85,2.194]
[1733196673188,6.53063152,227.87,227.67,0.04522457]
[1733196673390,6.53063152,227.84,227.76,6.53063152]
[1733196673584,6.53063152,227.82,227.75,1.3095]
[1733196673887,6.53063152,227.78,227.69,1.3815]
[1733196674086,6.53063152,227.78,227.7,6.53063152]
[1733196674087,8.71063152,227.78,227.7,6.53063152]
[1733196674282,2.1948,227.77,227.73,2.1952]
[1733196675083,2.1949,227.76,227.7,6.53063152]
[1733196675281,6.53063152,227.76,227.67,1.2964]
[1733196675486,6.53063152,227.76,227.67,7.82703152]
[1733196676188,6.53063152,227.76,227.66,1.2831]
[1733196676392,6.53063152,227.72,227.63,6.53063152]
[1733196676591,2.18,227.71,227.63,6.53063152]
[1733196676884,8.71063152,227.71,227.63,6.53063152]
[1733196677290,4.3754,227.71,227.66,2.1959]
[1733196677486,2.18,227.71,227.66,2.1959]
[1733196679193,2.18,227.71,227.65,6.53063152]
[1733196679395,2.18,227.71,227.67,2.1958]
[1733196681299,2.18,227.71,227.65,6.53063152]
[1733196681300,2.18,227.71,227.66,2.1959]
[1733196681787,8.71063152,227.71,227.66,2.1959]
[1733196682402,10.90603152,227.71,227.66,2.1959]
[1733196685000,8.71063152,227.71,227.65,6.53063152]
[1733196685202,2.1955,227.7,227.65,2.1959]
[1733196686305,10.90603152,227.71,227.66,2.1958]
[1733196687702,2.1955,227.7,227.66,2.1958]
[1733196692095,2.18,227.71,227.63,6.53063152]
[1733196692296,2.18,227.71,227.67,2.1957]
[1733196692700,2.18,227.71,227.63,6.53063152]
[1733196693403,2.18,227.71,227.6,2.6093]
[1733196693404,6.53063152,227.68,227.6,2.6093]
[1733196693603,6.53063152,227.66,227.6,2.6093]
[1733196693799,2.196,227.65,227.61,2.1963]
[1733196694502,10.88653152,227.66,227.62,2.1962]
[1733196694901,6.53063152,227.64,227.62,2.1962]
[1733196695104,4.3559,227.66,227.62,2.1962]
[1733196695105,10.88653152,227.66,227.62,2.1962]
[1733196697398,8.69063152,227.66,227.63,2.1962]
[1733196697705,2.16,227.67,227.62,6.53063152]
[1733196697905,2.16,227.67,227.66,2.1959]
[1733196698106,2.16,227.69,227.64,6.53063152]
[1733196698501,1.3632,227.77,227.66,6.53063152]
[1733196698700,1.3632,227.77,227.7,6.53063152]
[1733196698701,2.16,227.76,227.7,6.53063152]
[1733196698908,6.53063152,227.79,227.72,6.53063152]
[1733196699204,1.3634,227.81,227.74,6.53063152]
[1733196699205,2.16,227.78,227.74,6.53063152]
[1733196700305,2.16,227.82,227.76,6.53063152]
[1733196701402,2.16,227.82,227.78,6.53063152]
[1733196701603,2.16,227.82,227.81,2.1944]
[1733196701907,2.194,227.86,227.8,6.53063152]
[1733196701908,2.16,227.86,227.8,6.53063152]
[1733196702311,2.16,227.86,227.81,2.1944]
[1733196702505,2.16,227.86,227.82,6.53063152]
[1733196702810,6.53063152,227.89,227.82,6.53063152]
[1733196703004,6.53063152,227.87,227.8,2.20830358]
[1733196703203,6.53063152,227.87,227.8,8.7389351]
[1733196703702,2.16,227.89,227.82,6.53063152]
[1733196704505,6.53063152,227.88,227.82,6.53063152]
[1733196704904,2.16,227.89,227.85,2.194]
[1733196705106,6.53063152,227.9,227.85,2.194]
[1733196705308,2.16,227.89,227.82,6.53063152]
[1733196705506,2.16,227.89,227.84,6.53063152]
[1733196706905,6.53063152,227.91,227.84,6.53063152]
[1733196707211,2.16,227.92,227.86,6.53063152]
[1733196708012,2.16,227.92,227.87,2.1939]
[1733196710321,6.53063152,227.91,227.87,2.1939]
[1733196711711,2.16,227.92,227.85,6.53063152]
[1733196712011,2.16,227.98,227.89,6.53063152]
[1733196712214,2.16,227.98,227.84,2.16]
[1733196712215,8.69063152,227.98,227.91,6.53063152]
[1733196713312,10.88343152,227.98,227.93,2.1933]
[1733196713512,2.16,227.98,227.91,6.53063152]
[1733196714509,2.16,227.98,227.95,2.193]
[1733196714713,2.16,227.98,227.91,6.53063152]
[1733196715208,6.53063152,228.0,227.91,6.53063152]
[1733196715511,8.69063152,228.0,227.93,6.53063152]
[1733196716517,8.69063152,228.0,227.96,2.1929]
[1733196716716,8.69063152,228.0,227.93,6.53063152]
[1733196716717,2.16,228.0,227.93,6.53063152]
[1733196717214,2.1925,228.02,227.93,6.53063152]
[1733196717413,8.69063152,228.01,227.93,6.53063152]
[1733196718010,6.53063152,227.96,227.81,2.7718]
[1733196718216,6.53063152,227.92,227.88,2.1937]
[1733196718418,6.53063152,227.92,227.84,6.53063152]
[1733196718616,6.53063152,227.92,227.88,2.1938]
[1733196718617,8.72403152,227.92,227.88,2.1938]
[1733196718815,6.53063152,227.92,227.84,6.53063152]
[1733196719919,8.72403152,227.92,227.87,2.1939]
[1733196720718,4.3532,227.94,227.89,2.1936]
[1733196721016,2.16,227.98,227.9,6.53063152]
[1733196721227,8.69063152,227.99,227.92,6.53063152]
[1733196721719,2.16,227.99,227.92,6.53063152]
[1733196722022,2.16,227.99,227.88,2.16]
[1733196722023,2.16,228.01,227.97,2.1928]
[1733196722216,6.53063152,228.0,227.92,6.53063152]
[1733196723722,2.16,228.01,227.99,2.1927]
[1733196723925,2.1924,228.03,227.88,2.16]
[1733196723926,4.0389,228.07,227.98,6.53063152]
[1733196724119,2.16,228.06,227.98,6.53063152]
[1733196724320,2.16,228.06,228.01,2.1924]
[1733196724321,2.1921,228.06,228.01,2.1924]
[1733196724523,2.1921,228.06,227.93,2.16]
[1733196724524,2.16,228.07,228.0,6.53063152]
[1733196725326,8.69063152,228.08,228.0,6.53063152]
[1733196725523,2.16,228.08,228.0,6.53063152]
[1733196725724,2.16,228.08,228.04,2.1922]
[1733196725918,2.16,228.08,228.0,6.53063152]
[1733196726823,2.16,228.08,228.05,2.1921]
[1733196727215,2.16,228.08,228.04,2.1922]
[1733196727216,4.3518,228.08,228.04,2.1922]
[1733196728626,2.16,228.08,228.04,2.1922]
[1733196728928,2.16,228.08,228.01,6.53063152]
[1733196729426,4.3518,228.08,228.04,2.1922]
[1733196731426,2.16,228.08,228.04,2.1922]
[1733196731926,2.16,228.08,228.05,2.1921]
[1733196732120,2.16,228.08,228.01,6.53063152]
[1733196732428,2.70081,228.11,228.07,2.1918]
[1733196732620,2.70081,228.11,228.05,6.53063152]
[1733196733022,2.70081,228.11,228.07,2.1918]
[1733196733223,2.70081,228.11,228.05,6.53063152]
[1733196733624,9.23144152,228.11,228.05,6.53063152]
[1733196734128,9.23144152,228.11,227.93,3.9441]
[1733196734129,6.53063152,228.09,228.01,6.53063152]
[1733196734325,9.23144152,228.11,228.03,6.53063152]
[1733196735422,6.53063152,228.09,228.03,6.53063152]
[1733196736028,9.23144152,228.11,228.03,6.53063152]
[1733196736223,9.23144152,228.11,227.95,2.16]
[1733196736224,7.07144152,228.11,228.05,6.53063152]
[1733196736528,0.54081,228.11,228.05,6.53063152]
[1733196736723,0.54081,228.11,228.09,6.53063152]
[1733196737120,0.54081,228.11,228.1,2.1916]
[1733196739525,0.54081,228.11,228.02,1.357]
[1733196739727,9.26304152,228.11,228.07,2.1919]
[1733196739918,7.07144152,228.11,228.04,6.53063152]
[1733196740123,9.26304152,228.11,228.06,2.192]
[1733196740629,9.26304152,228.11,228.04,6.53063152]
[1733196740826,2.1917,228.1,228.06,2.1919]
[1733196741023,7.07144152,228.11,228.02,6.53063152]
[1733196741327,7.07144152,228.11,228.03,1.09716247]
[1733196741628,6.53063152,228.09,228.02,6.53063152]
[1733196741929,6.53063152,228.09,228.03,1.0971707]
[1733196741930,2.16,228.08,228.03,1.0971707]
[1733196742127,2.16,228.08,228.02,6.53063152]
[1733196742329,2.16,228.08,228.03,1.0971728]
[1733196742524,2.16,228.08,228.02,6.53063152]
[1733196742525,2.16,228.08,228.04,1.0971728]
[1733196742719,2.16,228.08,228.02,6.53063152]
[1733196742923,4.3518,228.08,228.04,2.1921]
[1733196743320,4.3518,228.08,228.02,6.53063152]
[1733196743523,4.3518,228.08,228.03,1.09718112]
[1733196743726,2.16,228.08,228.05,2.1921]
[1733196743922,2.16,228.08,228.06,6.53063152]
[1733196744329,0.54081,228.11,228.07,1.09712631]
[1733196744531,0.54081,228.11,228.06,6.53063152]
[1733196744834,0.54081,228.11,228.09,2.1917]
[1733196745133,0.54081,228.11,228.06,6.53063152]
[1733196745333,0.54081,228.11,228.1,2.1916]
[1733196748837,2.16,228.13,228.1,2.1916]
[1733196749538,4.3514,228.13,228.03,10.15701014]
[1733196750339,2.1916,228.11,228.03,10.15701014]
[1733196752035,2.1916,228.11,228.08,2.1918]
[1733196755041,2.1916,228.11,228.07,2.1919]
[1733196758037,2.16,228.13,228.08,2.1918]
[1733196758339,2.1915,228.12,228.08,2.1918]
[1733196761143,2.1915,228.12,228.05,2.1921]
[1733196761342,2.1915,228.12,228.03,10.15701014]
[1733196762946,2.1915,228.12,228.07,2.1919]
[1733196763238,2.1916,228.11,228.07,2.1919]
[1733196763447,2.1916,228.11,228.03,10.15701014]
[1733196763839,2.1919,228.08,228.0,10.15701014]
[1733196764143,2.16,228.07,228.0,10.15701014]
[1733196764944,2.16,228.07,228.04,2.1922]
[1733196765749,2.1921,228.05,227.98,24.28285148]
[1733196766751,2.16,228.07,227.98,24.28285148]
[1733196766937,2.1924,228.03,227.99,2.1927]
[1733196767141,2.16,228.02,227.98,24.28285148]
[1733196767349,2.16,228.01,227.98,24.28285148]
[1733196767548,2.16,228.0,227.98,24.28285148]
[1733196767750,2.16,227.99,227.98,24.28285148]
[1733196769948,2.16,227.99,227.98,26.47565148]
[1733196770952,2.16,227.99,227.98,32.98194591]
[1733196771749,2.16,227.99,227.97,2.1929]
[1733196771949,2.16,227.99,227.95,7.78519443]
[1733196772755,2.16,227.99,227.96,2.1929]
[1733196773351,2.16,227.99,227.9,1.2687]
[1733196773352,2.1928,227.98,227.94,2.1931]
[1733196773755,6.50629443,228.01,227.93,6.50629443]
[1733196774047,4.3526,228.0,227.96,2.193]
[1733196774353,2.16,227.99,227.93,6.50629443]
[1733196775250,2.16,227.99,227.95,6.50629443]
[1733196775446,2.16,227.99,227.94,6.50629443]
[1733196775653,2.16,227.99,227.96,2.193]
[1733196776753,2.16,227.99,227.95,6.50629443]
[1733196776754,2.16,227.99,227.97,2.1929]
[1733196778160,2.16,227.99,227.95,8.69929443]
[1733196778953,2.16,227.99,227.93,8.69949443]
[1733196779965,2.1929,227.97,227.93,8.69949443]
[1733196781258,6.50629443,227.96,227.73,0.04503142]
[1733196781461,2.16,227.99,227.77,2.16]
[1733196781759,2.1934,227.92,227.88,2.1937]
[1733196782064,2.16,227.91,227.88,6.50629443]
[1733196782365,2.16,227.9,227.88,6.50629443]
[1733196782564,2.576,228.07,227.88,6.50629443]
[1733196782861,2.576,228.07,227.93,6.50629443]
[1733196782862,6.50629443,228.01,227.93,6.50629443]
[1733196783059,2.1928,227.98,227.93,8.69949443]
[1733196783762,2.1928,227.98,227.85,4.0077]
[1733196783763,2.1932,227.95,227.89,2.1936]
[1733196783969,2.16,227.94,227.9,6.50629443]
[1733196784268,2.16,227.93,227.9,6.50629443]
[1733196784467,2.16,227.93,227.91,2.1934]
[1733196784768,2.16,227.93,227.9,6.50629443]
[1733196784969,2.16,227.93,227.92,2.1934]
[1733196786767,2.16,227.93,227.92,8.69969443]
[1733196787363,2.16,227.93,227.89,6.50629443]
[1733196788068,2.16,227.93,227.91,2.1935]
[1733196788659,2.16,227.93,227.89,6.50629443]
[1733196788864,2.16,227.93,227.92,2.1934]
[1733196792971,2.1929,227.97,227.93,2.1932]
[1733196793171,2.16,227.96,227.93,2.1932]
[1733196795473,2.16,227.96,227.94,2.1932]
[1733196803672,6.50629443,228.01,227.93,6.50629443]
[1733196803882,2.16,228.0,227.97,6.50629443]
[1733196804173,2.576,228.07,227.97,6.50629443]
[1733196804377,8.66629443,228.06,227.97,6.50629443]
[1733196805478,2.1923,228.03,227.99,2.1926]
[1733196806176,2.16,228.02,228.0,2.1926]
[1733196806580,2.1928,227.98,227.85,10.5557]
[1733196806778,2.16,227.97,227.94,2.1931]
[1733196806978,2.16,227.97,227.92,6.50629443]
[1733196808981,2.16,227.97,227.91,6.50629443]
[1733196809787,2.16,227.97,227.86,24.67645393]
[1733196809987,2.16,227.97,227.91,6.50629443]
[1733196810291,2.16,227.97,227.95,2.193]
[1733196811377,4.3529,227.97,227.93,2.1932]
[1733196811579,4.3529,227.97,227.9,6.50629443]
[1733196812077,2.16,227.97,227.9,6.50629443]
[1733196812478,2.16,227.97,227.94,2.1931]
[1733196812885,2.16,227.97,227.92,6.50629443]
[1733196813486,2.16,227.97,227.86,24.67645393]
[1733196813487,2.16,227.97,227.96,2.193]
[1733196814285,2.1925,228.02,227.97,2.1928]
[1733196814487,2.16,228.01,227.97,2.1928]
[1733196814883,4.3526,228.01,227.97,2.1928]
[1733196817385,2.1926,228.0,227.97,2.1928]
[1733196817686,2.16,228.01,227.98,2.1928]
[1733196817882,2.16,228.01,227.96,6.50629443]
[1733196818079,50.3554629,228.07,227.98,6.50629443]
[1733196818080,2.16,228.0,227.98,6.50629443]
[1733196818278,2.16,228.0,227.99,2.1927]
[1733196820083,2.1922,228.04,227.98,6.50629443]
[1733196820084,2.1922,228.04,228.0,2.1926]
[1733196820389,2.16,228.03,228.0,2.1926]
[1733196820988,2.1921,228.06,228.02,2.1924]
[1733196821182,2.16,228.05,228.0,6.50629443]
[1733196821386,2.16,228.04,228.0,6.50629443]
[1733196821579,2.16,228.04,228.03,2.1923]
[1733196822083,1.2721,228.07,228.03,2.1923]
[1733196822287,1.84949,228.08,228.04,2.1922]
[1733196822288,2.16,228.06,228.04,2.1922]
[1733196824689,2.16,228.06,228.05,2.1921]
[1733196824884,0.53069,228.08,228.02,6.50629443]
[1733196825085,2.16,228.07,228.02,6.50629443]
[1733196825285,2.16,228.07,227.95,3.9627]
[1733196825286,2.16,228.07,228.05,2.192]
[1733196827892,2.16,228.07,228.06,2.192]
[1733196830494,2.16,228.07,228.04,2.1921]
[1733196830791,8.66629443,228.07,227.99,6.50629443]
[1733196830994,2.16,228.07,228.01,6.50629443]
[1733196831990,2.16,228.07,228.04,2.1922]
[1733196832597,2.16,228.07,228.01,6.50629443]
[1733196832598,2.16,228.07,228.05,2.1921]
[1733196833193,2.16,228.07,228.06,2.192]
[1733196841904,2.16,228.07,228.01,6.50629443]
[1733196842199,2.16,228.07,227.98,6.50629443]
[1733196842200,8.66629443,228.07,227.98,6.50629443]
[1733196842502,8.66629443,228.07,227.95,3.9627]
[1733196842503,2.16,228.07,228.0,6.50629443]
[1733196842899,2.16,228.07,228.02,6.50629443]
[1733196843103,2.16,228.07,228.06,2.192]
[1733196843907,2.14,228.1,228.07,2.1919]
[1733196844107,2.14,228.1,228.08,6.50629443]
[1733196845000,2.14,228.1,228.09,2.1917]
[1733196850603,2.14,228.12,228.08,6.50629443]
[1733196850810,2.14,228.13,228.1,6.50629443]
[1733196851011,7.23940443,228.18,228.1,6.50629443]
[1733196851012,2.14,228.15,228.1,6.50629443]
[1733196851707,0.73311,228.18,228.12,6.50629443]
[1733196851908,0.73311,228.18,228.14,6.50629443]
[1733196852207,2.14,228.17,228.14,6.50629443]
[1733196852409,0.73311,228.18,228.16,2.191]
[1733196852608,2.87311,228.18,228.16,2.191]
[1733196854206,2.14,228.18,228.16,2.191]
[1733196859308,2.14,228.18,228.14,6.50629443]
[1733196859614,2.14,228.2,228.15,6.50629443]
[1733196860007,2.14,228.2,228.17,6.50629443]
[1733196861209,2.14,228.2,228.19,2.1908]
[1733196861715,2.14,228.2,228.19,8.69709443]
[1733196863910,13.17,228.48,228.19,6.50629443]
[1733196864115,667.7378461,228.43,228.23,6.50629443]
[1733196864421,2.14,228.29,228.23,6.50629443]
[1733196865125,2.14,228.29,228.25,6.50629443]
[1733196865816,2.14,228.29,228.27,2.1899]
[1733196867324,2.14,228.29,228.25,8.69639443]
[1733196868025,4.3299,228.29,228.25,8.69639443]
[1733196868420,2.14,228.29,228.25,8.69639443]
[1733196868622,2.14,228.29,228.26,2.1901]
[1733196869826,2.14,228.29,228.25,6.50629443]
[1733196870126,4.3298,228.29,228.23,6.50629443]
[1733196870423,2.1899,228.28,228.24,2.1903]
[1733196871830,10.83609443,228.29,228.24,2.1903]
[1733196872019,4.3298,228.29,228.24,2.1903]
[1733196872223,2.1899,228.28,228.24,2.1903]
[1733196872727,6.50629443,228.27,228.17,1.3021]
[1733196872921,2.1903,228.25,228.2,2.1906]
[1733196873122,2.14,228.24,228.2,2.1906]
[1733196873726,2.14,228.24,228.19,6.50629443]
[1733196873922,2.14,228.24,228.21,2.1906]
[1733196874724,2.14,228.24,228.19,6.50629443]
[1733196874929,2.14,228.24,228.21,8.69679443]
[1733196875129,2.14,228.24,228.21,6.50629443]
[1733196875926,2.14,228.24,228.22,2.1905]
[1733196877621,2.14,228.24,228.21,8.69689443]
[1733196879019,2.14,228.24,228.21,6.50629443]
[1733196879327,2.14,228.24,228.22,2.1905]
[1733196882229,2.14,228.24,228.21,6.50629443]
[1733196882424,2.14,228.24,228.21,8.69679443]
[1733196883736,2.14,228.24,228.22,2.1905]
[1733196887723,4.3303,228.24,228.2,2.1906]
[1733196887920,2.14,228.24,228.19,6.50629443]
[1733196888832,2.14,228.24,228.21,2.1905]
[1733196890635,2.14,228.24,228.22,6.50629443]
[1733196891126,2.14,228.24,228.23,2.1904]
[1733196891323,2.14,228.24,228.22,6.50629443]
[1733196891324,2.14,228.27,228.22,6.50629443]
[1733196891527,2.14,228.27,228.26,6.50629443]
[1733196892731,2.14,228.27,228.26,8.69639443]
[1733196893632,2.1897,228.3,228.26,8.69639443]
[1733196893831,2.14,228.29,228.26,8.69639443]
[1733196894130,2.14,228.29,228.18,1.3872]
[1733196894326,4.3299,228.29,228.25,2.1901]
[1733196895332,4.3299,228.29,228.26,2.1901]
[1733196897533,2.1901,228.27,228.24,6.50629443]
[1733196899035,2.1901,228.27,228.24,8.69659443]
[1733196900135,2.1901,228.27,228.24,6.50629443]
[1733196900336,2.1901,228.27,228.22,8.69669443]
[1733196900537,2.1901,228.27,228.22,6.50629443]
[1733196900738,2.1904,228.24,228.15,24.62715583]
[1733196901035,2.14,228.23,228.19,6.50629443]
[1733196901231,6.50629443,228.28,228.15,24.62715583]
[1733196901232,2.14,228.29,228.22,6.50629443]
[1733196901532,2.14,228.29,228.27,6.50629443]
[1733196903037,2.14,228.29,228.28,2.1899]
[1733196904341,2.14,228.31,228.3,2.1896]
[1733196910644,2.14,228.32,228.31,2.1896]
[1733196912743,2.14,228.32,228.29,8.69609443]
[1733196912944,2.14,228.32,228.29,6.50629443]
[1733196913450,2.14,228.32,228.31,2.1896]
[1733196915343,2.14,228.32,228.31,8.69589443]
[1733196916746,2.14,228.32,228.31,2.1896]
[1733196922345,2.14,228.32,228.29,2.1898]